bitfinex-derivatives/quotes_SOLF0:USTF0_20260213
["timestamp","ask_amount","ask_price","bid_price","bid_amount"]
[1770959343574,11.4973,78.346,78.301,7.63916845]
[1770959343880,3.57868356,78.33,78.29,3.57868356]
[1770959344374,3.57868356,78.32,78.28,3.57868356]
[1770959344575,3.57868356,78.32,78.274,7.62543234]
[1770959344576,3.57868356,78.31,78.274,7.62543234]
[1770959344778,3.57868356,78.31,78.261,7.62543234]
[1770959345278,11.5019,78.315,78.28,3.57868356]
[1770959345778,11.5019,78.315,78.271,7.62543234]
[1770959346864,3.57868356,78.31,78.27,3.57868356]
[1770959347065,3.57868356,78.31,78.261,7.65538194]
[1770959347476,3.57868356,78.31,78.27,3.57868356]
[1770959347679,11.5028,78.308,78.27,11.22190915]
[1770959347978,11.5028,78.308,78.271,7.64322559]
[1770959348875,11.5016,78.316,78.271,7.64322559]
[1770959353772,11.5016,78.316,78.28,3.58117963]
[1770959354187,11.5016,78.316,78.271,7.64322559]
[1770959357987,11.5028,78.309,78.271,7.64322559]
[1770959358695,11.5016,78.317,78.271,7.64322559]
[1770959362383,3.58117963,78.32,78.28,3.58117963]
[1770959362582,3.58117963,78.32,78.281,7.63126939]
[1770959367194,11.5013,78.319,78.281,7.63126939]
[1770959368590,3.58117963,78.32,78.281,7.63126939]
[1770959368797,3.58117963,78.32,78.283,7.52000453]
[1770959369187,11.66335955,78.359,78.234,23.81755933]
[1770959369188,3.58117963,78.34,78.291,7.52000453]
[1770959369592,3.58117963,78.34,78.301,7.52000453]
[1770959370793,11.4985,78.338,78.301,7.52000453]
[1770959372087,11.4994,78.332,78.301,7.52000453]
[1770959373889,3.58117963,78.35,78.311,7.4750138]
[1770959375102,3.58117963,78.35,78.315,7.47497609]
[1770959375901,11.4969,78.349,78.315,7.47497609]
[1770959376107,3.58117963,78.34,78.315,7.47497609]
[1770959377102,3.58117963,78.34,78.3,3.58117963]
[1770959377103,3.58117963,78.34,78.304,7.44641046]
[1770959385712,3.58117963,78.31,78.26,3.58117963]
[1770959385907,15.53693757,78.351,78.212,191.53025721]
[1770959385908,3.58117963,78.29,78.227,7.55543532]
[1770959386206,3.58117963,78.29,78.221,23.81755933]
[1770959386207,3.58117963,78.29,78.252,7.55543532]
[1770959386706,3.58117963,78.3,78.261,7.55543532]
[1770959386906,3.58117963,78.29,78.261,7.55543532]
[1770959387802,3.58117963,78.3,78.261,7.55543532]
[1770959388106,3.58117963,78.3,78.213,38.36]
[1770959388107,3.58117963,78.31,78.271,7.57784784]
[1770959389808,3.58117963,78.3,78.271,7.57784784]
[1770959390713,3.58117963,78.29,78.259,7.53527418]
[1770959394415,3.58117963,78.29,78.211,23.0339]
[1770959394416,11.5057,78.289,78.245,7.55347029]
[1770959394916,3.58117963,78.28,78.245,7.55347029]
[1770959395109,3.58117963,78.28,78.23,11.5142]
[1770959395110,3.58117963,78.27,78.23,3.58117963]
[1770959396008,3.58117963,78.27,78.23,11.14500322]
[1770959396210,3.58117963,78.27,78.231,7.56382359]
[1770959396409,11.5075,78.276,78.231,7.56382359]
[1770959396610,11.5075,78.276,78.24,3.58117963]
[1770959398915,11.5064,78.284,78.241,7.53550478]
[1770959399720,3.58117963,78.28,78.241,7.53550478]
[1770959400623,3.58117963,78.29,78.25,3.58117963]
[1770959400816,3.58117963,78.28,78.245,7.53991113]
[1770959401621,3.58117963,78.27,78.231,7.53620474]
[1770959402013,3.58117963,78.29,78.241,7.53620474]
[1770959402219,3.58117963,78.28,78.241,7.53620474]
[1770959402819,11.5046,78.296,78.251,7.53620474]
[1770959403116,3.58117963,78.29,78.251,7.53620474]
[1770959403723,3.58117963,78.29,78.26,3.58117963]
[1770959404626,11.5057,78.289,78.251,7.53620474]
[1770959404922,9.36235628,78.321,78.233,7.51122202]
[1770959404923,3.58117963,78.27,78.233,7.51122202]
[1770959406824,15.08957963,78.27,78.233,7.51122202]
[1770959408426,3.58117963,78.27,78.233,7.51122202]
[1770959408918,3.58504006,78.27,78.233,7.51122202]
[1770959409715,11.5073,78.278,78.24,3.58504006]
[1770959409921,11.5073,78.278,78.241,7.51397783]
[1770959410322,3.58504006,78.29,78.251,7.51397783]
[1770959411126,11.5061,78.286,78.24,3.58504006]
[1770959411324,3.58504006,78.28,78.24,3.58504006]
[1770959411526,3.58504006,78.28,78.24,11.09901789]
[1770959412323,11.5071,78.279,78.24,7.51397783]
[1770959412525,3.58504006,78.27,78.231,7.51521702]
[1770959417133,11.5081,78.272,78.231,7.51521702]
[1770959417332,3.58504006,78.27,78.231,7.51521702]
[1770959423931,11.5092,78.265,78.231,7.51521702]
[1770959424933,11.5105,78.256,78.22,3.58504006]
[1770959425138,11.5105,78.256,78.221,7.35540352]
[1770959425339,3.58504006,78.26,78.221,7.35540352]
[1770959426531,3.58504006,78.27,78.221,7.35540352]
[1770959426736,3.58504006,78.27,78.231,7.3432774]
[1770959427038,3.58504006,78.28,78.231,7.3432774]
[1770959427832,3.58504006,78.27,78.231,7.3432774]
[1770959429243,3.58504006,78.26,78.231,7.3432774]
[1770959429738,11.51,78.259,78.231,7.3432774]
[1770959436443,11.51,78.259,78.22,3.58504006]
[1770959436444,11.51,78.259,78.221,7.32846308]
[1770959438644,11.5113,78.251,78.221,7.32846308]
[1770959440046,3.58504006,78.25,78.221,7.32846308]
[1770959440352,11.5113,78.251,78.221,7.32846308]
[1770959443856,3.58504006,78.24,78.201,7.33235544]
[1770959444748,3.58504006,78.23,78.19,3.58504006]
[1770959444952,3.58504006,78.23,78.191,7.33235544]
[1770959445461,3.58504006,78.22,78.191,7.33235544]
[1770959445761,3.58504006,78.22,78.181,7.35828244]
[1770959446764,11.516,78.219,78.181,7.35828244]
[1770959447766,9.41105239,78.235,78.191,7.32820102]
[1770959447959,9.41105239,78.239,78.191,7.32820102]
[1770959448264,3.58504006,78.23,78.191,7.32820102]
[1770959448464,9.41105239,78.237,78.191,7.32820102]
[1770959448664,3.58504006,78.23,78.191,7.32820102]
[1770959449863,11.5145,78.229,78.191,7.32820102]
[1770959452656,11.5133,78.237,78.201,7.29542444]
[1770959456767,3.58504006,78.24,78.202,7.28854067]
[1770959457064,11.5121,78.245,78.211,7.28854067]
[1770959458073,11.5104,78.256,78.221,7.24000025]
[1770959459465,11.5094,78.264,78.231,7.24000025]
[1770959460773,3.58504006,78.27,78.231,7.24000025]
[1770959461869,11.5087,78.268,78.231,7.24000025]
[1770959466372,11.5072,78.279,78.232,7.31358456]
[1770959466580,9.38250297,78.305,78.251,7.31358456]
[1770959466770,3.58504006,78.29,78.251,7.31358456]
[1770959467167,11.5056,78.289,78.251,7.31358456]
[1770959467773,11.5042,78.299,78.261,7.30477879]
[1770959469178,11.5028,78.309,78.27,3.58504006]
[1770959469481,3.58504006,78.3,78.262,7.30477879]
[1770959470979,3.58261565,78.3,78.262,7.30477879]
[1770959480483,11.5044,78.298,78.262,7.30477879]
[1770959480689,3.58261565,78.29,78.262,7.30477879]
[1770959481486,11.5044,78.298,78.262,7.30477879]
[1770959481981,3.58261565,78.3,78.262,7.30477879]
[1770959482381,11.5029,78.308,78.262,7.30477879]
[1770959482781,11.5029,78.308,78.264,7.62628212]
[1770959484198,3.58261565,78.3,78.264,7.62628212]
[1770959484788,11.5047,78.296,78.264,7.62628212]
[1770959485094,11.5047,78.296,78.224,102.0]
[1770959485095,3.58261565,78.29,78.252,7.64819229]
[1770959485295,3.58261565,78.28,78.241,7.64819229]
[1770959485688,3.58261565,78.28,78.242,7.64819229]
[1770959485995,3.58261565,78.29,78.242,7.64819229]
[1770959486592,3.58261565,78.29,78.25,3.58261565]
[1770959486795,11.5061,78.286,78.25,11.24516741]
[1770959488387,11.5061,78.286,78.251,7.7012784]
[1770959488593,3.58261565,78.29,78.251,7.7012784]
[1770959494401,3.58261565,78.29,78.254,7.67906673]
[1770959494694,3.58261565,78.31,78.271,7.67906673]
[1770959495798,15.08371565,78.32,78.28,3.58261565]
[1770959495998,15.08371565,78.32,78.281,7.69313026]
[1770959497104,3.58261565,78.31,78.281,7.69313026]
[1770959497502,3.58261565,78.3,78.262,7.69313026]
[1770959498293,3.58261565,78.3,78.265,7.71737211]
[1770959498498,11.5031,78.307,78.265,7.71737211]
[1770959500206,3.58261565,78.31,78.273,7.72804085]
[1770959500900,130.2,78.317,78.273,7.72804085]
[1770959501102,3.58261565,78.31,78.273,7.72804085]
[1770959502606,3.58261565,78.3,78.273,7.72804085]
[1770959505102,11.503,78.307,78.273,7.72804085]
[1770959505905,3.58261565,78.31,78.275,7.76464758]
[1770959506100,11.5016,78.317,78.275,7.76464758]
[1770959506304,11.5016,78.317,78.281,7.76464758]
[1770959506608,3.58261565,78.32,78.283,7.76464758]
[1770959507603,132.36,78.326,78.283,7.76464758]
[1770959507604,3.58261565,78.31,78.283,7.76464758]
[1770959511507,3.58261565,78.32,78.283,7.76464758]
[1770959511813,9.4439663,78.319,78.283,7.76464758]
[1770959512107,9.4439663,78.318,78.283,7.76464758]
[1770959512310,9.44517421,78.326,78.291,7.76556375]
[1770959512501,153.4201,78.327,78.291,7.76556375]
[1770959513013,3.58261565,78.33,78.293,7.76556375]
[1770959514715,3.58261565,78.33,78.295,7.75541424]
[1770959515613,3.58261565,78.31,78.261,7.75541424]
[1770959516315,3.58261565,78.31,78.232,23.81755933]
[1770959516316,3.58261565,78.31,78.273,7.74069599]
[1770959520017,3.58261565,78.31,78.275,7.78898237]
[1770959522022,3.58261565,78.31,78.284,7.7892167]
[1770959522227,3.58261565,78.32,78.284,7.7892167]
[1770959524924,3.58261565,78.33,78.291,7.77014774]
[1770959525421,11.4967,78.35,78.302,11.5037]
[1770959525625,3.58261565,78.34,78.303,7.77014774]
[1770959526526,3.58261565,78.33,78.303,7.77014774]
[1770959526729,3.58261565,78.33,78.297,11.5044]
[1770959527127,3.58261565,78.33,78.3,11.504]
[1770959527431,3.58261565,78.32,78.281,7.76837995]
[1770959527730,3.58261565,78.33,78.281,7.76837995]
[1770959528125,3.58261565,78.33,78.291,7.75310206]
[1770959528927,3.58261565,78.32,78.279,7.75310206]
[1770959529126,3.58261565,78.31,78.279,7.75310206]
[1770959529526,3.58261565,78.32,78.279,7.75310206]
[1770959529725,3.58261565,78.32,78.282,7.75544677]
[1770959530333,3.58261565,78.31,78.282,7.75544677]
[1770959530825,3.58261565,78.31,78.27,3.58261565]
[1770959530826,3.58261565,78.31,78.285,7.75544677]
[1770959531032,3.5809889,78.32,78.285,7.75544677]
[1770959531832,11.66335955,78.354,78.28,3.5809889]
[1770959531833,11.4981,78.34,78.287,7.72487632]
[1770959532028,153.14,78.329,78.291,7.72487632]
[1770959532733,3.5809889,78.32,78.291,7.72487632]
[1770959533327,3.5809889,78.32,78.285,11.5062]
[1770959533932,3.5809889,78.32,78.285,19.24421055]
[1770959538640,154.68,78.326,78.286,7.74496473]
[1770959538834,154.68,78.326,78.294,7.74496473]
[1770959538835,3.5809889,78.32,78.294,7.74496473]
[1770959545639,3.5809889,78.33,78.294,7.74496473]
[1770959547246,3.5809889,78.32,78.294,7.74496473]
[1770959547636,9.42587154,78.334,78.294,7.74496473]
[1770959547840,3.5809889,78.32,78.294,7.74496473]
[1770959549046,3.5809889,78.33,78.296,7.63442079]
[1770959552345,3.5809889,78.33,78.254,23.81755933]
[1770959552346,3.5809889,78.32,78.281,7.6204594]
[1770959552739,9.43014626,78.329,78.281,7.6204594]
[1770959552936,9.43014626,78.328,78.281,7.6204594]
[1770959553144,9.43014626,78.327,78.281,7.6204594]
[1770959553352,9.43014626,78.326,78.281,7.6204594]
[1770959553544,9.43014626,78.325,78.281,7.6204594]
[1770959553851,11.5001,78.327,78.284,7.62359083]
[1770959554054,9.43126392,78.326,78.284,7.62359083]
[1770959554245,9.43126392,78.325,78.284,7.62359083]
[1770959554550,9.43126392,78.324,78.284,7.62359083]
[1770959554746,11.5014,78.318,78.284,7.62359083]
[1770959554954,3.5809889,78.32,78.284,7.62359083]
[1770959557149,11.5001,78.327,78.284,7.62359083]
[1770959557348,9.43466758,78.326,78.284,7.62359083]
[1770959557545,9.43466758,78.325,78.284,7.62359083]
[1770959557746,9.43466758,78.324,78.284,7.62359083]
[1770959558051,11.5001,78.327,78.284,7.62359083]
[1770959558254,9.434378,78.326,78.284,7.62359083]
[1770959558453,9.434378,78.325,78.284,7.62359083]
[1770959558753,11.5001,78.327,78.285,7.61877159]
[1770959561255,11.5001,78.327,29.248,17.01399246]
[1770959561256,3.5809889,78.32,78.278,7.61502553]
[1770959561456,9.43362486,78.319,78.278,7.61502553]
[1770959561753,9.43362486,78.318,78.278,7.61502553]
[1770959561957,9.43362486,78.317,78.278,7.61502553]
[1770959562250,3.5809889,78.32,78.278,7.61502553]
[1770959562553,9.43470363,78.319,78.278,7.61502553]
[1770959562754,9.43470363,78.318,78.28,7.62534804]
[1770959562944,3.5809889,78.32,78.28,3.5809889]
[1770959562945,9.43470363,78.317,78.28,3.5809889]
[1770959563149,3.5809889,78.32,78.281,7.62534804]
[1770959563458,9.43665166,78.319,78.281,7.62534804]
[1770959563753,3.5809889,78.32,78.281,7.62534804]
[1770959564055,9.43911417,78.319,78.288,7.65284416]
[1770959564256,3.5809889,78.32,78.288,7.65284416]
[1770959564453,9.44109333,78.319,78.288,7.65284416]
[1770959564653,3.5809889,78.32,78.288,7.65284416]
[1770959564851,9.44109447,78.319,78.288,7.65284416]
[1770959565055,3.5809889,78.32,78.288,7.65284416]
[1770959565255,9.44109447,78.319,78.288,7.65284416]
[1770959565451,3.5809889,78.32,78.288,7.65284416]
[1770959565657,9.4420336,78.319,78.288,7.65284416]
[1770959565957,3.5809889,78.32,78.288,7.65284416]
[1770959566159,9.44420172,78.319,78.288,7.65284416]
[1770959566359,9.44420172,78.318,78.288,7.65284416]
[1770959566554,3.5809889,78.32,78.288,7.65284416]
[1770959566858,9.44806779,78.319,78.288,7.65284416]
[1770959567057,9.44806779,78.318,78.288,7.65284416]
[1770959567354,3.5809889,78.32,78.288,7.65284416]
[1770959567556,9.44808197,78.319,78.288,7.65284416]
[1770959567756,9.44808197,78.318,78.288,7.65284416]
[1770959567955,9.44904242,78.328,78.288,7.65284416]
[1770959568157,9.44904242,78.327,78.288,7.65284416]
[1770959568358,11.4998,78.329,78.288,7.65284416]
[1770959568553,9.44904975,78.328,78.288,7.65284416]
[1770959568856,9.44904975,78.327,78.288,7.65284416]
[1770959569051,11.4998,78.329,78.288,7.65284416]
[1770959569250,3.5809889,78.32,78.288,7.65284416]
[1770959569456,9.44602714,78.319,78.288,7.65284416]
[1770959569655,9.44602714,78.318,78.288,7.65284416]
[1770959569845,3.5809889,78.32,78.288,7.65284416]
[1770959570049,9.44602631,78.319,78.288,7.65284416]
[1770959570250,9.44602631,78.318,78.288,7.65284416]
[1770959570451,3.5809889,78.32,78.288,7.65284416]
[1770959570653,9.44697517,78.319,78.288,7.65284416]
[1770959570852,9.44697517,78.318,78.288,7.65284416]
[1770959571053,3.5809889,78.32,78.288,7.65284416]
[1770959571356,9.44696238,78.319,78.288,7.65284416]
[1770959571561,9.44696238,78.318,78.288,7.65284416]
[1770959571753,9.44696238,78.317,78.288,7.65284416]
[1770959571954,3.5809889,78.32,78.288,7.65284416]
[1770959572154,9.45039524,78.319,78.288,7.65284416]
[1770959572369,9.45039524,78.318,78.288,7.65284416]
[1770959572662,9.45039524,78.317,78.288,7.65284416]
[1770959572862,9.45039524,78.316,78.288,7.65284416]
[1770959573161,3.5809889,78.33,78.288,7.65284416]
[1770959573361,9.45231554,78.329,78.288,7.65284416]
[1770959573659,9.45231554,78.328,78.288,7.65284416]
[1770959573862,20.95231554,78.327,78.288,7.65284416]
[1770959574060,9.45231554,78.326,78.288,7.65284416]
[1770959574263,9.45231554,78.325,78.288,7.65284416]
[1770959574560,9.45231554,78.324,78.288,7.65284416]
[1770959574762,9.45231554,78.323,78.288,7.65284416]
[1770959574962,9.45231554,78.322,78.288,7.65284416]
[1770959575167,9.45231554,78.321,78.288,7.65284416]
[1770959575364,9.45231554,78.32,78.288,7.65284416]
[1770959575565,9.45231554,78.319,78.288,7.65284416]
[1770959575866,9.45231554,78.318,78.288,7.65284416]
[1770959576066,9.45231554,78.317,78.288,7.65284416]
[1770959576265,9.45231554,78.316,78.288,7.65284416]
[1770959576465,11.5,78.327,78.288,7.65284416]
[1770959576766,9.45086912,78.326,78.288,7.65284416]
[1770959576963,9.45086912,78.325,78.288,7.65284416]
[1770959577163,9.45086912,78.324,78.288,7.65284416]
[1770959577466,9.45086912,78.323,78.288,7.65284416]
[1770959577666,9.45086912,78.322,78.288,7.65284416]
[1770959577867,9.45086912,78.321,78.288,7.65284416]
[1770959578066,11.5,78.327,78.288,7.65284416]
[1770959578262,9.45226811,78.326,78.288,7.65284416]
[1770959578464,9.45226811,78.325,78.288,7.65284416]
[1770959578660,11.5,78.327,78.288,7.65284416]
[1770959578966,9.4522067,78.326,78.296,7.64226374]
[1770959579163,3.5809889,78.34,78.296,7.64226374]
[1770959579465,9.45274738,78.339,78.301,7.64226374]
[1770959579665,9.45274738,78.338,78.301,7.64226374]
[1770959579866,11.4989,78.335,78.301,7.64226374]
[1770959580069,9.45274738,78.334,78.301,7.64226374]
[1770959580258,9.45274738,78.333,78.301,7.64226374]
[1770959580459,9.45274738,78.332,78.301,7.64226374]
[1770959580659,3.5809889,78.34,78.301,7.64226374]
[1770959580861,9.45492512,78.339,78.301,7.64226374]
[1770959581064,9.45492512,78.338,78.301,7.64226374]
[1770959581263,9.45492512,78.337,78.301,7.64226374]
[1770959581469,20.95362512,78.336,78.301,7.64226374]
[1770959581669,9.45492512,78.335,78.301,7.64226374]
[1770959581965,9.45492512,78.334,78.301,7.64226374]
[1770959582166,9.45492512,78.333,78.301,7.64226374]
[1770959582366,9.45492512,78.332,78.301,7.64226374]
[1770959582668,11.4987,78.336,78.301,7.64226374]
[1770959582867,9.45289012,78.335,78.301,7.64226374]
[1770959583057,9.45289012,78.334,78.301,7.64226374]
[1770959583260,9.45289012,78.333,78.301,7.64226374]
[1770959583460,11.4987,78.336,78.301,7.64226374]
[1770959583656,9.45205811,78.335,78.301,7.64226374]
[1770959583866,9.45205811,78.334,78.301,7.64226374]
[1770959584068,9.45205811,78.333,78.301,7.64226374]
[1770959584261,11.4987,78.336,78.301,7.64226374]
[1770959584457,9.45127491,78.335,78.301,7.64226374]
[1770959584659,9.45127491,78.334,78.301,7.64226374]
[1770959584864,9.45242643,78.349,78.301,7.64226374]
[1770959585065,9.45242643,78.348,78.301,7.64226374]
[1770959585265,9.45242643,78.347,78.301,7.64226374]
[1770959585566,9.45242643,78.346,78.301,7.64226374]
[1770959585768,9.45242643,78.345,78.307,7.58890399]
[1770959585968,9.45242643,78.344,78.307,7.58890399]
[1770959586270,9.45242643,78.343,78.307,7.58890399]
[1770959586468,11.4968,78.349,78.307,7.58890399]
[1770959586668,9.44775733,78.348,78.307,7.58890399]
[1770959586870,9.44775733,78.347,78.307,7.58890399]
[1770959587170,3.5809889,78.34,78.307,7.58890399]
[1770959590877,3.57885172,78.34,78.307,7.58890399]
[1770959591672,2.74600662,78.356,78.33,3.57885172]
[1770959591882,2.74600662,78.356,78.32,7.52030576]
[1770959592272,2.74600662,78.356,78.321,3.94145404]
[1770959592574,6.32376907,78.34,78.301,3.94145404]
[1770959593376,6.32376907,78.34,78.274,101.92]
[1770959593377,3.57885172,78.31,78.288,3.94145404]
[1770959594071,2.74491735,78.319,78.288,3.94145404]
[1770959597084,3.57885172,78.31,78.288,3.94145404]
[1770959599485,3.57885172,78.31,78.277,3.94145404]
[1770959599885,2.70340274,78.309,78.266,3.94145404]
[1770959600181,125.34,78.338,78.266,3.94145404]
[1770959600182,3.57885172,78.29,78.266,3.94145404]
[1770959600591,2.70340274,78.299,78.266,3.94145404]
[1770959602790,2.70340274,78.299,78.256,3.94145404]
[1770959602791,3.57885172,78.29,78.256,3.94145404]
[1770959602981,3.57885172,78.28,78.246,3.94145404]
[1770959603186,6.24453633,78.28,78.246,3.94145404]
[1770959603887,3.57885172,78.27,78.234,3.94145404]
[1770959604088,3.57885172,78.26,78.234,3.94145404]
[1770959604287,2.62622609,78.269,78.234,3.94145404]
[1770959605488,3.57885172,78.28,78.24,3.57885172]
[1770959605688,3.57885172,78.28,78.241,3.94145404]
[1770959606293,3.57885172,78.29,78.251,3.94145404]
[1770959606492,2.6008717,78.289,78.251,3.94145404]
[1770959607395,3.57885172,78.28,78.251,3.94145404]
[1770959607790,2.6008717,78.289,78.254,15.45215404]
[1770959608096,3.57885172,78.29,78.255,3.94145404]
[1770959609489,6.19576294,78.29,78.255,3.94145404]
[1770959610795,3.57885172,78.28,78.243,3.89435294]
[1770959611390,2.62119131,78.279,78.243,3.89435294]
[1770959611592,3.57885172,78.27,78.231,3.89435294]
[1770959612296,3.57885172,78.27,78.23,15.09305172]
[1770959612297,3.57885172,78.27,78.232,15.40825294]
[1770959612694,3.57885172,78.27,78.233,3.89435294]
[1770959613491,2.62119131,78.279,78.233,3.89435294]
[1770959613687,3.57885172,78.27,78.234,11.5137]
[1770959613892,3.57885172,78.27,78.235,4.1317919]
[1770959616601,3.57885172,78.27,78.237,4.1317919]
[1770959617503,3.57885172,78.27,78.239,4.1317919]
[1770959618695,2.62119131,78.279,78.239,4.1317919]
[1770959620401,3.57885172,78.27,78.239,4.1317919]
[1770959623103,2.62119131,78.279,78.245,4.1317919]
[1770959623302,2.62119131,78.279,78.25,3.57885172]
[1770959623503,2.57336934,78.289,78.251,4.1317919]
[1770959626211,3.57885172,78.28,78.251,4.1317919]
[1770959628000,2.57336934,78.289,78.251,4.1317919]
[1770959628199,6.16212606,78.28,78.251,4.1317919]
[1770959628598,2.58327434,78.279,78.246,11.5118]
[1770959629913,3.57885172,78.29,78.25,3.57885172]
[1770959630105,2.59087257,78.289,78.251,4.1317919]
[1770959637505,11.5073,78.278,78.241,4.1317919]
[1770959637713,2.37379705,78.269,78.23,4.1317919]
[1770959638012,2.37379705,78.269,78.231,4.1317919]
[1770959638611,3.57885172,78.26,78.231,4.1317919]
[1770959638812,2.37379705,78.269,78.231,4.1317919]
[1770959639211,3.57885172,78.26,78.231,4.1317919]
[1770959641911,9.32502105,78.268,78.233,3.97197736]
[1770959642114,2.37379705,78.269,78.233,3.97197736]
[1770959643121,2.37379705,78.269,78.235,3.97197736]
[1770959643314,9.32502105,78.273,78.241,3.97197736]
[1770959643512,2.31661898,78.279,78.241,3.97197736]
[1770959643723,11.80748309,78.278,78.241,3.97197736]
[1770959643923,11.80748309,78.277,78.241,3.97197736]
[1770959644124,3.57885172,78.28,78.243,3.97197736]
[1770959644421,9.42524377,78.287,78.251,3.97197736]
[1770959644621,2.38940341,78.288,78.251,3.97197736]
[1770959644824,9.4277891,78.287,78.251,3.97197736]
[1770959645123,9.4277891,78.286,78.251,3.97197736]
[1770959645421,9.4277891,78.285,78.251,3.97197736]
[1770959645624,102.0,78.307,78.198,331.73586286]
[1770959645625,3.57885172,78.3,78.261,3.97197736]
[1770959645924,9.43454966,78.299,78.261,3.97197736]
[1770959646122,2.42225498,78.297,78.261,3.97197736]
[1770959646324,11.85680464,78.296,78.261,3.97197736]
[1770959646525,9.43454966,78.295,78.261,3.97197736]
[1770959646822,9.43454966,78.294,78.261,3.97197736]
[1770959647017,9.43454966,78.293,78.261,3.97197736]
[1770959647220,9.43454966,78.292,78.261,3.97197736]
[1770959647424,9.43454966,78.291,78.261,3.97197736]
[1770959647625,9.43454966,78.29,78.261,3.97197736]
[1770959647930,11.92707726,78.289,78.25,7.55082908]
[1770959648225,9.43454966,78.288,78.25,7.55082908]
[1770959648426,9.43454966,78.287,78.25,7.55082908]
[1770959648618,2.4925276,78.289,78.251,11.5111]
[1770959648819,9.44153187,78.288,78.252,3.97197736]
[1770959649026,9.44153187,78.287,78.252,3.97197736]
[1770959649230,2.4925276,78.289,78.254,3.97197736]
[1770959649425,9.44116136,78.288,78.254,3.97197736]
[1770959649726,2.4925276,78.289,78.254,3.97197736]
[1770959650025,9.44116592,78.288,78.254,3.97197736]
[1770959650225,2.4925276,78.289,78.254,3.97197736]
[1770959650525,9.44104473,78.288,78.254,3.97197736]
[1770959650732,2.4925276,78.289,78.254,3.97197736]
[1770959651019,5.86280321,78.3,78.261,3.97197736]
[1770959651225,11.72414477,78.299,78.261,3.97197736]
[1770959651425,11.72414477,78.298,78.261,3.97197736]
[1770959651627,2.28395149,78.296,78.261,3.97197736]
[1770959651829,9.44019328,78.295,78.261,3.97197736]
[1770959652018,2.28395149,78.296,78.261,3.97197736]
[1770959660731,3.58331927,78.29,78.261,3.97197736]
[1770959661524,2.28395149,78.296,78.265,11.509]
[1770959662028,2.28395149,78.296,78.261,3.97197736]
[1770959665934,2.28395149,78.296,78.266,11.5089]
[1770959666634,2.28395149,78.296,78.261,3.97197736]
[1770959668930,3.58331927,78.29,78.261,3.97197736]
[1770959670041,1.87547131,78.293,78.261,3.97197736]
[1770959680334,9.42766437,78.292,78.261,3.97197736]
[1770959680633,1.87547131,78.293,78.261,3.97197736]
[1770959680838,9.42761508,78.292,78.261,3.97197736]
[1770959681040,1.87547131,78.293,78.261,3.97197736]
[1770959681339,11.5044,78.298,78.231,4.16456996]
[1770959681340,1.86816053,78.269,78.231,4.16456996]
[1770959682431,11.5088,78.267,78.231,4.16456996]
[1770959682633,3.58331927,78.26,78.231,4.16456996]
[1770959683438,5.43447299,78.26,78.231,4.16456996]
[1770959684242,1.85115372,78.259,78.221,4.16456996]
[1770959684437,3.58331927,78.25,78.221,4.16456996]
[1770959684635,1.85115372,78.249,78.221,4.16456996]
[1770959685335,1.85115372,78.249,78.214,11.5165]
[1770959685735,1.85115372,78.249,78.214,15.68106996]
[1770959686643,1.85115372,78.249,78.214,4.16456996]
[1770959691238,9.42769486,78.267,78.216,4.16456996]
[1770959691239,1.78242957,78.26,78.216,4.16456996]
[1770959691444,1.78242957,78.259,78.221,4.16456996]
[1770959693649,11.5103,78.258,78.221,4.16456996]
[1770959697349,1.81370807,78.229,78.19,3.58331927]
[1770959697548,1.81370807,78.219,78.19,4.16456996]
[1770959697847,1.81370807,78.219,78.171,11.5229]
[1770959698043,1.81370807,78.219,78.18,4.16456996]
[1770959698645,3.58331927,78.21,78.18,4.16456996]
[1770959700345,3.58331927,78.23,78.191,4.16456996]
[1770959701146,3.58331927,78.23,78.193,3.87022862]
[1770959701848,1.77453517,78.233,78.2,3.58331927]
[1770959702049,3.58331927,78.24,78.201,3.87022862]
[1770959703145,1.82737683,78.239,78.201,3.87022862]
[1770959703449,3.58331927,78.23,78.201,3.87022862]
[1770959704147,1.82737683,78.239,78.201,3.87022862]
[1770959704349,5.4106961,78.25,78.211,3.87022862]
[1770959704554,3.58331927,78.26,78.22,7.45354789]
[1770959704760,3.58331927,78.25,78.22,3.87022862]
[1770959704945,5.4106961,78.26,78.221,3.87022862]
[1770959705847,5.4106961,78.26,78.164,125.0878]
[1770959705848,1.8672941,78.249,78.211,11.517]
[1770959706850,1.8672941,78.249,78.213,11.5167]
[1770959709266,3.58331927,78.25,78.216,3.87022862]
[1770959709460,5.49983011,78.27,78.231,3.87022862]
[1770959709753,1.91651084,78.269,78.231,3.87022862]
[1770959709959,3.58331927,78.26,78.231,3.87022862]
[1770959710360,3.58331927,78.27,78.231,3.87022862]
[1770959712954,3.58331927,78.27,78.241,3.87022862]
[1770959713158,3.58331927,78.28,78.241,3.87022862]
[1770959714261,1.94112072,78.279,78.241,3.87022862]
[1770959715464,3.58499395,78.27,78.241,3.87022862]
[1770959716365,1.94112072,78.279,78.241,3.87022862]
[1770959716967,1.94112072,78.279,78.24,3.58499395]